[Event "Uhlenkoeper-Open 2024"]
[Site "Uelzen"]
[Date "2024.12.30"]
[Round "7.3"]
[White "Bargsten, Justus"]
[Black "Glek, Igor"]
[Result "1/2-1/2"]
[ECO "C11"]
[WhiteElo "2228"]
[BlackElo "2431"]
[Annotator "RC"]
[PlyCount "54"]
[EventDate "2024.12.27"]
[EventType "swiss"]
[EventCountry "GER"]
[SourceTitle "playchess.com"]
[Source "ChessBase"]
[SourceQuality "1"]
[TimeControl "40/5400+30:1800+30"]

1. e4 {[%emt 0:00:01]} e6 {[%emt 0:03:23]} 2. d4 {[%emt 0:00:06]} d5 {[%emt 0:00:03]} 3. Nc3 {[%emt 0:00:05]} Nf6 {[%emt 0:00:13]} 4. e5 {[%emt 0:00:05]} Nfd7 {[%emt 0:00:04]} 5. f4 {[%emt 0:00:05]} c5 {[%emt 0:00:04]} 6. Nf3 {[%emt 0:00:04]} Nc6 {[%emt 0:00:04]} 7. Be3 {[%emt 0:00:04]} Be7 {[%emt 0:02:47]} 8. a3 {[%emt 0:00:06]} b6 {[%emt 0:09:49]} 9. Bb5 {[%emt 0:00:11]} Bb7 {[%emt 0:00:09]} 10. Qd2 {[%emt 0:00:41]} O-O {[%emt 0:00:12]} 11. h4 {[%emt 0:05:24]} cxd4 {[%emt 0:21:33]} 12. Bxd4 {[%emt 0:01:41]} Nxd4 {[%emt 0:01:47]} 13. Qxd4 {[%emt 0:00:02]} Nc5 {[%emt 0:02:03]} 14. O-O-O {[%emt 0:06:51]} Qc7 {[%emt 0:01:53]} 15. Bd3 {[%emt 0:07:51]} Rfd8 {[%emt 0:10:22]} 16. Qe3 {[%emt 0:10:07]} Rac8 {[%emt 0:10:48]} 17. Nb5 {[%emt 0:07:38]} Nxd3+ {[%emt 0:11:01]} 18. Qxd3 {[%emt 0:00:09]} Ba6 {[%emt 0:00:56]} 19. Nxc7 {[%emt 0:04:39]} Bxd3 {[%emt 0:00:02]} 20. cxd3 {[%emt 0:01:58]} Rxc7+ {[%emt 0:01:09]} 21. Kd2 {[%emt 0:00:17]} Rdc8 {[%emt 0:01:56]} 22. Rc1 {[%emt 0:00:15]} h5 {[%emt 0:01:13]} 23. Rxc7 {[%emt 0:01:38]} Rxc7 {[%emt 0:00:01]} 24. Nd4 {[%emt 0:04:20]} g6 {[%emt 0:05:37]} 25. g3 {[%emt 0:05:45]} a6 {[%emt 0:00:17]} 26. Nf3 {[%emt 0:01:33]} Kf8 {[%emt 0:00:38]} 27. Rc1 {[%emt 0:00:44]} Rxc1 {[%emt 0:00:13]} 1/2-1/2

[Event "Uhlenkoeper-Open 2024"]
[Site "Uelzen"]
[Date "2024.12.30"]
[Round "7.4"]
[White "Parvanyan, Ashot"]
[Black "Buergener, Richard"]
[Result "1-0"]
[ECO "E18"]
[WhiteElo "2399"]
[BlackElo "1857"]
[Annotator "RC"]
[PlyCount "23"]
[EventDate "2024.12.27"]
[EventType "swiss"]
[EventCountry "GER"]
[SourceTitle "playchess.com"]
[Source "ChessBase"]
[SourceQuality "1"]
[TimeControl "40/5400+30:1800+30"]

1. Nf3 {[%emt 0:00:05]} d5 {[%emt 0:00:08]} 2. d4 {[%emt 0:00:27]} Nf6 {[%emt 0:00:16]} 3. c4 {[%emt 0:00:06]} e6 {[%emt 0:00:10]} 4. g3 {[%emt 0:00:11]} Be7 {[%emt 0:00:11]} 5. Bg2 {[%emt 0:00:05]} O-O {[%emt 0:00:09]} 6. O-O {[%emt 0:00:05]} b6 {[%emt 0:01:03]} 7. cxd5 {[%emt 0:03:07]} exd5 {[%emt 0:00:12]} 8. Nc3 {[%emt 0:00:04]} Bb7 {[%emt 0:01:54]} 9. Bf4 {[%emt 0:00:59]} Nbd7 {[%emt 0:07:18]} 10. Rc1 {[%emt 0:02:43]} a6 {[%emt 0:03:58]} 11. Nh4 {[%emt 0:12:12]} g6 {[%emt 0:08:43]} 12. Bxc7 {[%emt 0:02:24]} 1-0

[Event "Uhlenkoeper-Open 2024"]
[Site "Uelzen"]
[Date "2024.12.30"]
[Round "7.5"]
[White "von Estorff, Jacob"]
[Black "Weigand, Anton"]
[Result "0-1"]
[ECO "B33"]
[WhiteElo "2209"]
[BlackElo "2092"]
[Annotator "RC"]
[PlyCount "72"]
[EventDate "2024.12.27"]
[EventType "swiss"]
[EventCountry "GER"]
[SourceTitle "playchess.com"]
[Source "ChessBase"]
[SourceQuality "1"]
[TimeControl "40/5400+30:1800+30"]

1. e4 {[%emt 0:00:14]} c5 {[%emt 0:00:06]} 2. Nf3 {[%emt 0:00:21]} Nc6 {[%emt 0:00:06]} 3. d4 {[%emt 0:00:31]} cxd4 {[%emt 0:00:06]} 4. Nxd4 {[%emt 0:00:08]} Nf6 {[%emt 0:00:07]} 5. Nc3 {[%emt 0:03:11]} e5 {[%emt 0:00:20]} 6. Ndb5 {[%emt 0:03:05]} d6 {[%emt 0:00:24]} 7. Bg5 {[%emt 0:06:17]} a6 {[%emt 0:00:40]} 8. Bxf6 {[%emt 0:03:30]} gxf6 {[%emt 0:00:33]} 9. Na3 {[%emt 0:00:06]} b5 {[%emt 0:02:19]} 10. Nd5 {[%emt 0:02:21]} f5 {[%emt 0:02:22]} 11. Bd3 {[%emt 0:10:08]} Be6 {[%emt 0:00:10]} 12. Qh5 {[%emt 0:06:20]} Rg8 {[%emt 0:00:54]} 13. O-O-O {[%emt 0:05:53]} Rc8 {[%emt 0:05:44]} 14. f4 {[%emt 0:07:08]} fxe4 {[%emt 0:05:12]} 15. Bxe4 {[%emt 0:06:49]} Bg4 {[%emt 0:01:50]} 16. Qxh7 {[%emt 0:00:42]} Rg7 {[%emt 0:00:12]} 17. Qh6 {[%emt 0:00:53]} Rg6 {[%emt 0:00:43]} 18. Qh7 {[%emt 0:05:32]} Rh6 {[%emt 0:04:50]} 19. Qg8 {[%emt 0:00:11]} Bxd1 {[%emt 0:01:00]} 20. Rxd1 {[%emt 0:00:09]} Ne7 {[%emt 0:10:52]} 21. Qg3 {[%emt 0:04:03]} Nxd5 {[%emt 0:00:53]} 22. Bxd5 {[%emt 0:06:32]} Qh4 {[%emt 0:14:21]} 23. Bb7 {[%emt 0:01:02]} Rc5 {[%emt 0:00:14]} 24. b4 {[%emt 0:05:21]} Qxg3 {[%emt 0:01:41]} 25. hxg3 {[%emt 0:00:04]} Rc3 {[%emt 0:00:21]} 26. Kb2 {[%emt 0:00:43]} Rxg3 {[%emt 0:00:35]} 27. Bxa6 {[%emt 0:00:40]} exf4 {[%emt 0:00:29]} 28. Bxb5+ {[%emt 0:00:22]} Ke7 {[%emt 0:04:08]} 29. Nc4 {[%emt 0:01:50]} Bg7+ {[%emt 0:00:09]} 30. Kb1 {[%emt 0:04:42]} d5 {[%emt 0:04:10]} 31. Na5 {[%emt 0:04:35]} Rxg2 {[%emt 0:00:37]} 32. Nc6+ {[%emt 0:00:26]} Kd6 {[%emt 0:01:31]} 33. c4 {[%emt 0:07:56]} Rhh2 {[%emt 0:00:56]} 34. Rf1 {[%emt 0:05:09]} Rxa2 {[%emt 0:02:06]} 35. c5+ {[%emt 0:00:22]} Kc7 {[%emt 0:00:13]} 36. Ne7 {[%emt 0:00:41]} Ra1# {[%emt 0:37:36]} 0-1

[Event "Uhlenkoeper-Open 2024"]
[Site "Uelzen"]
[Date "2024.12.30"]
[Round "7.6"]
[White "Askerov, Imamali"]
[Black "Martin, Dennis"]
[Result "1/2-1/2"]
[ECO "B12"]
[WhiteElo "2007"]
[BlackElo "2005"]
[Annotator "RC"]
[PlyCount "78"]
[EventDate "2024.12.27"]
[EventType "swiss"]
[EventCountry "GER"]
[SourceTitle "playchess.com"]
[Source "ChessBase"]
[SourceQuality "1"]
[TimeControl "40/5400+30:1800+30"]

1. e4 {[%emt 0:09:28]} c6 {[%emt 0:00:21]} 2. d4 {[%emt 0:00:38]} d5 {[%emt 0:00:02]} 3. e5 {[%emt 0:01:35]} Bf5 {[%emt 0:00:03]} 4. h4 {[%emt 0:00:23]} h5 {[%emt 0:00:03]} 5. c4 {[%emt 0:04:51]} e6 {[%emt 0:00:25]} 6. Nf3 {[%emt 0:00:57]} Bg4 {[%emt 0:01:08]} 7. Qb3 {[%emt 0:19:57]} Qb6 {[%emt 0:00:20]} 8. c5 {[%emt 0:14:44]} Qc7 {[%emt 0:00:03]} 9. Qc3 {[%emt 0:08:54]} a5 {[%emt 0:00:54]} 10. a3 {[%emt 0:00:08]} a4 {[%emt 0:00:21]} 11. Be3 {[%emt 0:01:31]} b6 {[%emt 0:01:32]} 12. cxb6 {[%emt 0:01:57]} Qxb6 {[%emt 0:00:02]} 13. Nbd2 {[%emt 0:02:06]} Ne7 {[%emt 0:02:22]} 14. Bd3 {[%emt 0:03:07]} Bf5 {[%emt 0:00:39]} 15. Rb1 {[%emt 0:04:31]} Bxd3 {[%emt 0:01:38]} 16. Qxd3 {[%emt 0:00:04]} Nf5 {[%emt 0:00:08]} 17. b4 {[%emt 0:02:39]} axb3 {[%emt 0:00:28]} 18. Rxb3 {[%emt 0:00:08]} Qa7 {[%emt 0:00:25]} 19. O-O {[%emt 0:01:27]} Nxe3 {[%emt 0:03:11]} 20. fxe3 {[%emt 0:00:58]} Be7 {[%emt 0:00:03]} 21. Rfb1 {[%emt 0:10:32]} O-O {[%emt 0:01:18]} 22. Rb7 {[%emt 0:00:09]} Qxa3 {[%emt 0:00:02]} 23. R1b3 {[%emt 0:00:08]} Qc1+ {[%emt 0:01:03]} 24. Kh2 {[%emt 0:00:12]} Re8 {[%emt 0:00:34]} 25. Ng5 {[%emt 0:03:45]} g6 {[%emt 0:07:28]} 26. Nxe6 {[%emt 0:01:39]} Ra1 {[%emt 0:05:40]} 27. Rb1 {[%emt 0:02:16]} Rxb1 {[%emt 0:00:34]} 28. Rxb1 {[%emt 0:00:08]} Qa3 {[%emt 0:00:13]} 29. Rb3 {[%emt 0:02:08]} Qa6 {[%emt 0:00:29]} 30. Qb1 {[%emt 0:00:50]} Qc8 {[%emt 0:00:15]} 31. Nf4 {[%emt 0:00:46]} Kg7 {[%emt 0:03:39]} 32. e6 {[%emt 0:00:48]} f5 {[%emt 0:03:40]} 33. Nf3 {[%emt 0:01:28]} Bd6 {[%emt 0:01:38]} 34. Rb7+ {[%emt 0:00:27]} Re7 {[%emt 0:00:34]} 35. Rxe7+ {[%emt 0:00:33]} Bxe7 {[%emt 0:00:02]} 36. Ne5 {[%emt 0:00:35]} Bd6 {[%emt 0:01:05]} 37. Nexg6 {[%emt 0:00:20]} Qxe6 {[%emt 0:00:18]} 38. g3 {[%emt 0:01:19]} Qxe3 {[%emt 0:02:35]} 39. Qxf5 {[%emt 0:00:20]} Qf2+ {[%emt 0:00:15]} 1/2-1/2

[Event "Uhlenkoeper-Open 2024"]
[Site "Uelzen"]
[Date "2024.12.30"]
[Round "7.7"]
[White "Tarasenko, Nazar"]
[Black "Leppert, Stefan"]
[Result "1-0"]
[ECO "E71"]
[WhiteElo "2011"]
[BlackElo "1930"]
[Annotator "RC"]
[PlyCount "53"]
[EventDate "2024.12.27"]
[EventType "swiss"]
[EventCountry "GER"]
[SourceTitle "playchess.com"]
[Source "ChessBase"]
[SourceQuality "1"]
[TimeControl "40/5400+30:1800+30"]

1. d4 {[%emt 0:00:02]} Nf6 {[%emt 0:00:12]} 2. c4 {[%emt 0:00:06]} g6 {[%emt 0:00:06]} 3. Nc3 {[%emt 0:00:03]} Bg7 {[%emt 0:00:06]} 4. e4 {[%emt 0:00:04]} d6 {[%emt 0:00:07]} 5. h3 {[%emt 0:00:12]} O-O {[%emt 0:00:10]} 6. Be3 {[%emt 0:00:23]} Nc6 {[%emt 0:02:40]} 7. Nge2 {[%emt 0:00:47]} e5 {[%emt 0:00:27]} 8. d5 {[%emt 0:00:05]} Ne7 {[%emt 0:00:05]} 9. g4 {[%emt 0:04:45]} c6 {[%emt 0:04:50]} 10. Qd2 {[%emt 0:01:14]} cxd5 {[%emt 0:00:48]} 11. cxd5 {[%emt 0:00:05]} a6 {[%emt 0:01:14]} 12. Ng3 {[%emt 0:05:42]} b5 {[%emt 0:01:03]} 13. f3 {[%emt 0:00:26]} Nd7 {[%emt 0:01:55]} 14. h4 {[%emt 0:03:58]} f5 {[%emt 0:02:43]} 15. gxf5 {[%emt 0:00:16]} gxf5 {[%emt 0:00:03]} 16. exf5 {[%emt 1:20:22]} Nxf5 {[%emt 0:00:28]} 17. Nxf5 {[%emt 0:00:00]} Rxf5 {[%emt 0:00:16]} 18. Bd3 {[%emt 0:00:00]} Rh5 {[%emt 0:00:39]} 19. Ne4 {[%emt 0:00:00]} Nc5 {[%emt 0:06:08]} 20. Ng3 {[%emt 0:00:00]} Nxd3+ {[%emt 0:00:54]} 21. Qxd3 {[%emt 0:00:00]} Rxh4 {[%emt 0:01:25]} 22. O-O-O {[%emt 0:00:00]} e4 {[%emt 0:04:17]} 23. Nxe4 {[%emt 0:00:00]} Bf5 {[%emt 0:01:03]} 24. Rhg1 {[%emt 0:00:00]} Bxe4 {[%emt 0:01:36]} 25. fxe4 {[%emt 0:00:00]} Qf6 {[%emt 0:00:34]} 26. Bd4 {[%emt 0:00:00]} Qf4+ {[%emt 0:03:45]} 27. Kb1 {[%emt 0:00:00]} 1-0

[Event "Uhlenkoeper-Open 2024"]
[Site "Uelzen"]
[Date "2024.12.30"]
[Round "7.8"]
[White "Burnus, Finn Crispin"]
[Black "Carmesin, Leon Lucas Finn"]
[Result "1-0"]
[ECO "D78"]
[WhiteElo "1883"]
[BlackElo "2081"]
[Annotator "RC"]
[PlyCount "79"]
[EventDate "2024.12.27"]
[EventType "swiss"]
[EventCountry "GER"]
[SourceTitle "playchess.com"]
[Source "ChessBase"]
[SourceQuality "1"]
[TimeControl "40/5400+30:1800+30"]

1. d4 {[%emt 0:00:57]} Nf6 {[%emt 0:23:34]} 2. c4 {[%emt 0:00:06]} g6 {[%emt 0:00:03]} 3. g3 {[%emt 0:00:06]} c6 {[%emt 0:00:05]} 4. Bg2 {[%emt 0:00:06]} d5 {[%emt 0:00:04]} 5. Nf3 {[%emt 0:00:07]} Bg7 {[%emt 0:00:02]} 6. O-O {[%emt 0:00:14]} O-O {[%emt 0:00:03]} 7. Ne5 {[%emt 0:00:09]} dxc4 {[%emt 0:01:45]} 8. Nxc4 {[%emt 0:00:50]} Be6 {[%emt 0:01:27]} 9. Ne5 {[%emt 0:01:49]} Nbd7 {[%emt 0:02:16]} 10. Nc3 {[%emt 0:02:14]} Nxe5 {[%emt 0:03:25]} 11. dxe5 {[%emt 0:00:16]} Nd7 {[%emt 0:00:22]} 12. f4 {[%emt 0:00:40]} f6 {[%emt 0:03:39]} 13. exf6 {[%emt 0:01:42]} exf6 {[%emt 0:12:10]} 14. e4 {[%emt 0:08:26]} Nc5 {[%emt 0:01:49]} 15. Qf3 {[%emt 0:06:40]} Qa5 {[%emt 0:05:07]} 16. Rb1 {[%emt 0:13:38]} Qb4 {[%emt 0:04:39]} 17. b3 {[%emt 0:18:02]} Rfd8 {[%emt 0:08:19]} 18. a3 {[%emt 0:09:34]} Qd4+ {[%emt 0:00:32]} 19. Be3 {[%emt 0:00:07]} Qxc3 {[%emt 0:13:57]} 20. Rfc1 {[%emt 0:00:42]} Qxc1+ {[%emt 0:04:20]} 21. Rxc1 {[%emt 0:03:33]} Nxb3 {[%emt 0:00:13]} 22. Rd1 {[%emt 0:00:08]} Na5 {[%emt 0:02:21]} 23. Rxd8+ {[%emt 0:12:44]} Rxd8 {[%emt 0:00:02]} 24. Bxa7 {[%emt 0:00:14]} Nc4 {[%emt 0:00:24]} 25. a4 {[%emt 0:05:10]} Rd2 {[%emt 0:02:19]} 26. Bf1 {[%emt 0:04:40]} Ra2 {[%emt 0:02:07]} 27. Bxc4 {[%emt 0:02:57]} Bxc4 {[%emt 0:00:06]} 28. Qd1 {[%emt 0:00:07]} Bf8 {[%emt 0:01:31]} 29. Qd8 {[%emt 0:01:37]} Kf7 {[%emt 0:00:57]} 30. Qd7+ {[%emt 0:01:45]} Kg8 {[%emt 0:00:29]} 31. Bd4 {[%emt 0:02:27]} Rd2 {[%emt 0:00:25]} 32. e5 {[%emt 0:01:36]} fxe5 {[%emt 0:04:17]} 33. fxe5 {[%emt 0:00:01]} Rd1+ {[%emt 0:01:34]} 34. Kf2 {[%emt 0:01:28]} Rf1+ {[%emt 0:00:14]} 35. Ke3 {[%emt 0:01:15]} Bh6+ {[%emt 0:02:18]} 36. Ke4 {[%emt 0:00:19]} Re1+ {[%emt 0:00:56]} 37. Kf3 {[%emt 0:00:26]} Bd5+ {[%emt 0:00:36]} 38. Kf2 {[%emt 0:01:05]} Rc1 {[%emt 0:00:28]} 39. Qe8+ {[%emt 0:00:37]} Bf8 {[%emt 0:00:22]} 40. e6 {[%emt 0:00:34]} 1-0

[Event "Uhlenkoeper-Open 2024"]
[Site "Uelzen"]
[Date "2024.12.30"]
[Round "7.9"]
[White "Nyenhuis, Yannek"]
[Black "Dehn, Marcus"]
[Result "0-1"]
[ECO "E11"]
[WhiteElo "1943"]
[BlackElo "2053"]
[Annotator "RC"]
[PlyCount "96"]
[EventDate "2024.12.27"]
[EventType "swiss"]
[EventCountry "GER"]
[SourceTitle "playchess.com"]
[Source "ChessBase"]
[SourceQuality "1"]
[TimeControl "40/5400+30:1800+30"]

1. d4 {[%emt 0:00:05]} Nf6 {[%emt 0:00:10]} 2. c4 {[%emt 0:00:07]} e6 {[%emt 0:00:09]} 3. Nf3 {[%emt 0:00:07]} Bb4+ {[%emt 0:00:08]} 4. Bd2 {[%emt 0:00:21]} Qe7 {[%emt 0:00:31]} 5. e3 {[%emt 0:00:16]} Ne4 {[%emt 0:01:30]} 6. Bd3 {[%emt 0:00:13]} f5 {[%emt 0:06:23]} 7. O-O {[%emt 0:06:23]} O-O {[%emt 0:03:59]} 8. Bxb4 {[%emt 0:11:09]} Qxb4 {[%emt 0:00:18]} 9. Qc2 {[%emt 0:00:11]} d5 {[%emt 0:03:55]} 10. c5 {[%emt 0:00:56]} c6 {[%emt 0:00:09]} 11. a3 {[%emt 0:00:22]} Qa5 {[%emt 0:00:04]} 12. b4 {[%emt 0:00:18]} Qd8 {[%emt 0:01:13]} 13. Nc3 {[%emt 0:00:46]} Nd7 {[%emt 0:03:40]} 14. Nd2 {[%emt 0:19:32]} Nxd2 {[%emt 0:09:34]} 15. Qxd2 {[%emt 0:00:06]} e5 {[%emt 0:00:14]} 16. dxe5 {[%emt 0:08:02]} Nxe5 {[%emt 0:00:58]} 17. Ne2 {[%emt 0:00:08]} Qh4 {[%emt 0:05:11]} 18. Qc3 {[%emt 0:04:52]} Ng6 {[%emt 0:13:12]} 19. Rab1 {[%emt 0:09:16]} a6 {[%emt 0:06:24]} 20. a4 {[%emt 0:00:34]} Qg5 {[%emt 0:00:06]} 21. f4 {[%emt 0:00:59]} Qe7 {[%emt 0:00:29]} 22. Rf3 {[%emt 0:00:20]} Rf6 {[%emt 0:03:09]} 23. Nd4 {[%emt 0:01:59]} Nf8 {[%emt 0:02:34]} 24. Rg3 {[%emt 0:04:50]} g6 {[%emt 0:01:35]} 25. Kf2 {[%emt 0:00:43]} Kf7 {[%emt 0:00:49]} 26. Nf3 {[%emt 0:00:33]} Nd7 {[%emt 0:00:28]} 27. Ng5+ {[%emt 0:07:32]} Ke8 {[%emt 0:01:21]} 28. h4 {[%emt 0:00:49]} h5 {[%emt 0:02:04]} 29. Nf3 {[%emt 0:00:45]} a5 {[%emt 0:00:27]} 30. Bc2 {[%emt 0:12:26]} axb4 {[%emt 0:05:38]} 31. Rxb4 {[%emt 0:00:02]} Ra5 {[%emt 0:02:01]} 32. Rb5 {[%emt 0:03:21]} cxb5 {[%emt 0:04:40]} 33. Qxa5 {[%emt 0:00:25]} Qxc5 {[%emt 0:00:13]} 34. Nd4 {[%emt 0:05:27]} b4 {[%emt 0:00:47]} 35. Qb5 {[%emt 0:02:02]} Qxb5 {[%emt 0:00:58]} 36. Nxb5 {[%emt 0:00:07]} Kd8 {[%emt 0:01:38]} 37. Bb3 {[%emt 0:00:21]} Nb6 {[%emt 0:02:56]} 38. Ke2 {[%emt 0:00:27]} Bd7 {[%emt 0:01:06]} 39. Kd3 {[%emt 0:00:25]} Bxb5+ {[%emt 0:04:32]} 40. axb5 {[%emt 0:00:02]} Ke7 {[%emt 0:00:25]} 41. Kd4 {[%emt 0:30:42]} Kd6 {[%emt 0:30:14]} 42. Rf3 {[%emt 0:00:32]} Re6 {[%emt 0:01:21]} 43. Bc2 {[%emt 0:00:51]} Nc4 {[%emt 0:01:35]} 44. Bd3 {[%emt 0:00:51]} Nd2 {[%emt 0:00:30]} 45. Bc2 {[%emt 0:00:30]} b3 {[%emt 0:00:30]} 46. Bd3 {[%emt 0:00:30]} Nxf3+ {[%emt 0:00:00]} 47. gxf3 {[%emt 0:00:00]} b2 {[%emt 0:00:00]} 48. Bb1 {[%emt 0:00:00]} b6 {[%emt 0:00:00]} 0-1

[Event "Uhlenkoeper-Open 2024"]
[Site "Uelzen"]
[Date "2024.12.30"]
[Round "7.10"]
[White "Sayas Payyappat"]
[Black "Wetterau, Nathanael"]
[Result "0-1"]
[ECO "C42"]
[WhiteElo "1823"]
[BlackElo "1961"]
[Annotator "RC"]
[PlyCount "98"]
[EventDate "2024.12.27"]
[EventType "swiss"]
[EventCountry "GER"]
[SourceTitle "playchess.com"]
[Source "ChessBase"]
[SourceQuality "1"]
[TimeControl "40/5400+30:1800+30"]

1. e4 {[%emt 0:00:02]} e5 {[%emt 0:01:08]} 2. Nf3 {[%emt 0:00:14]} Nf6 {[%emt 0:00:25]} 3. Bc4 {[%emt 0:00:36]} Nxe4 {[%emt 0:00:06]} 4. Nc3 {[%emt 0:00:27]} Nxc3 {[%emt 0:00:04]} 5. dxc3 {[%emt 0:00:09]} c6 {[%emt 0:00:02]} 6. Nxe5 {[%emt 0:04:04]} d5 {[%emt 0:00:07]} 7. Bd3 {[%emt 0:00:31]} Bd6 {[%emt 0:00:05]} 8. Nf3 {[%emt 0:09:14]} O-O {[%emt 0:00:27]} 9. O-O {[%emt 0:00:08]} Bg4 {[%emt 0:05:10]} 10. h3 {[%emt 0:05:15]} Bh5 {[%emt 0:00:36]} 11. Re1 {[%emt 0:01:12]} Nd7 {[%emt 0:01:57]} 12. Be3 {[%emt 0:02:06]} Nc5 {[%emt 0:07:08]} 13. Bxc5 {[%emt 0:06:29]} Bxc5 {[%emt 0:00:08]} 14. Re5 {[%emt 0:05:05]} Bg6 {[%emt 0:02:08]} 15. Qd2 {[%emt 0:06:31]} a5 {[%emt 0:09:48]} 16. Rae1 {[%emt 0:00:26]} Bd6 {[%emt 0:00:57]} 17. R5e2 {[%emt 0:01:38]} Bh5 {[%emt 0:01:31]} 18. g4 {[%emt 0:05:14]} Bg6 {[%emt 0:02:34]} 19. Kg2 {[%emt 0:03:37]} Qd7 {[%emt 0:16:07]} 20. Ne5 {[%emt 0:02:06]} Bxe5 {[%emt 0:00:15]} 21. Rxe5 {[%emt 0:00:39]} Rfe8 {[%emt 0:00:06]} 22. Rxe8+ {[%emt 0:06:00]} Rxe8 {[%emt 0:00:09]} 23. Rxe8+ {[%emt 0:00:05]} Qxe8 {[%emt 0:00:07]} 24. Qe3 {[%emt 0:00:20]} Qxe3 {[%emt 0:05:32]} 25. fxe3 {[%emt 0:00:05]} Kf8 {[%emt 0:02:08]} 26. Kf3 {[%emt 0:00:25]} Ke7 {[%emt 0:00:05]} 27. Bxg6 {[%emt 0:01:18]} hxg6 {[%emt 0:01:23]} 28. Kf4 {[%emt 0:02:40]} Kd6 {[%emt 0:02:56]} 29. e4 {[%emt 0:01:14]} b5 {[%emt 0:07:53]} 30. g5 {[%emt 0:04:50]} dxe4 {[%emt 0:06:30]} 31. Kxe4 {[%emt 0:00:39]} f5+ {[%emt 0:02:38]} 32. Kf4 {[%emt 0:04:20]} Kd5 {[%emt 0:04:58]} 33. h4 {[%emt 0:00:27]} Ke6 {[%emt 0:00:23]} 34. b3 {[%emt 0:11:53]} b4 {[%emt 0:02:43]} 35. cxb4 {[%emt 0:01:50]} axb4 {[%emt 0:00:05]} 36. Ke3 {[%emt 0:00:09]} Ke5 {[%emt 0:03:44]} 37. c3 {[%emt 0:00:19]} c5 {[%emt 0:00:33]} 38. c4 {[%emt 0:00:41]} f4+ {[%emt 0:00:13]} 39. Kf2 {[%emt 0:00:21]} Ke4 {[%emt 0:00:06]} 40. Ke2 {[%emt 0:00:06]} f3+ {[%emt 0:00:20]} 41. Kf2 {[%emt 0:30:04]} Kf4 {[%emt 0:30:21]} 42. h5 {[%emt 0:00:07]} gxh5 {[%emt 0:00:02]} 43. g6 {[%emt 0:00:16]} h4 {[%emt 0:00:04]} 44. a4 {[%emt 0:00:06]} bxa3 {[%emt 0:00:13]} 45. b4 {[%emt 0:00:04]} a2 {[%emt 0:00:09]} 46. b5 {[%emt 0:00:12]} a1=Q {[%emt 0:00:06]} 47. b6 {[%emt 0:00:03]} Qd1 {[%emt 0:00:12]} 48. b7 {[%emt 0:00:05]} Qe2+ {[%emt 0:00:09]} 49. Kg1 {[%emt 0:00:04]} Qg2# {[%emt 0:20:29]} 0-1

[Event "Uhlenkoeper-Open 2024"]
[Site "Uelzen"]
[Date "2024.12.31"]
[Round "9.2"]
[White "Weigand, Anton"]
[Black "Bagrationi, Alexander"]
[Result "0-1"]
[ECO "B22"]
[WhiteElo "2092"]
[BlackElo "2384"]
[Annotator "TA"]
[PlyCount "50"]
[EventDate "2024.12.27"]
[EventType "swiss"]
[EventCountry "GER"]
[SourceTitle "playchess.com"]
[Source "ChessBase"]
[SourceQuality "1"]
[TimeControl "40/5400+30:1800+30"]

{[%evp 9,50,12,7,11,10,6,16,14,35,39,39,33,33,41,33,28,21,32,28,24,31,2,10,18,13,0,0,-20,-6,-5,-5,-16,-18,-28,-27,-108,-101,-197,-197,-662,-662,-29987,-29988]} 1. e4 {[%emt 0:00:04]} c5 {[%emt 0:04:41]} 2. c3 {[%emt 0:00:05]} d5 {[%emt 0:00:11]} 3. exd5 {[%emt 0:00:05]} Nf6 {[%emt 0:00:02]} 4. Bb5+ {[%emt 0:00:19]} Nbd7 {[%emt 0:00:13]} 5. Qb3 {[%emt 0:01:02]} a6 {[%emt 0:00:51]} 6. Be2 {[%emt 0:00:05]} b5 {[%emt 0:05:14]} 7. d3 {[%emt 0:00:17][%cal Bd2d3,Bd3c4][%mdl 32]} Rb8 {[%emt 0:05:26]} 8. Nf3 {[%emt 0:00:52]} Bb7 {[%emt 0:02:52]} 9. c4 {[%emt 0:07:11]} bxc4 {[%emt 0:05:57]} 10. dxc4 {[%emt 0:00:12]} Bxd5 $1 {[%emt 0:00:06]} 11. Qa4 {[%emt 0:00:05]} Bb7 {[%emt 0:12:47]} 12. Bf4 {[%emt 0:04:33] Dodges Qc7} Bxf3 {[%emt 0:02:17]} 13. Bxf3 {[%emt 0:00:16]} Rxb2 {[%emt 0:00:21][%cal Oe7e5]} 14. O-O {[%emt 0:05:39][%cal Ob1c3] Nc3! poses a challenge} g6 {[%emt 0:01:33]} 15. Nc3 {[%emt 0:07:39]} Bg7 {[%emt 0:00:58][%cal Bf8g7,Bg7c3,Bc3e5][%mdl 32]} 16. Rab1 {[%emt 0:00:07]} Rxb1 {[%emt 0:01:26]} 17. Rxb1 {[%emt 0:00:07][%cal Ob1b8] Threatens to win with Rb8!.} O-O {[%emt 0:00:10]} 18. Qxa6 {[%emt 0:00:14]} Nh5 {[%emt 0:01:19]} 19. Bxh5 {[%emt 0:04:30] This pair of bishops is nice.} Bxc3 {[%emt 0:00:45]} 20. Bf3 {[%emt 0:01:17]} Ne5 {[%emt 0:00:57]} 21. Bxe5 {[%emt 0:04:24]} Bxe5 {[%emt 0:00:08]} 22. a4 {[%emt 0:00:06]} (22. Qa7 $11 {keeps the balance.}) 22... Qd2 $40 {[%emt 0:02:23][%mdl 128] Strongly threatening ...Qf4. Black wants a kill.} 23. a5 {[%emt 0:11:07] [#]} (23. Qb6 $17) 23... Qf4 $1 $19 {[%emt 0:03:03]} 24. Qb7 $2 {[%emt 0:06:25]} (24. Qb6) 24... Rb8 {[%emt 0:00:55]} (24... Qxc4 25. a6 (25. Qxe7 Qa2 $17) 25... Bb8 26. a7 (26. Qxe7 Qxa6 27. Qxc5 Ba7 $16) 26... Bxa7 27. Qxa7 $18) 25. Qe4 {[%emt 0:01:09]} Rxb1+ {[%emt 0:00:12]} 0-1

[Event "Uhlenkoeper-Open 2024"]
[Site "Uelzen"]
[Date "2024.12.31"]
[Round "9.3"]
[White "von Estorff, Jacob"]
[Black "Parvanyan, Ashot"]
[Result "1/2-1/2"]
[ECO "C55"]
[WhiteElo "2209"]
[BlackElo "2399"]
[Annotator "TA"]
[PlyCount "37"]
[EventDate "2024.12.27"]
[EventType "swiss"]
[EventCountry "GER"]
[SourceTitle "playchess.com"]
[Source "ChessBase"]
[SourceQuality "1"]
[TimeControl "40/5400+30:1800+30"]

{[%evp 18,37,15,17,4,-2,-7,0,8,0,0,0,0,0,0,0,11,0,0,-20,-10,0]} 1. e4 {[%emt 0:00:10]} e5 {[%emt 0:00:09]} 2. Nf3 {[%emt 0:00:49]} Nc6 {[%emt 0:00:06]} 3. Bc4 {[%emt 0:05:20]} Nf6 {[%emt 0:00:11]} 4. Nc3 {[%emt 0:00:21]} Nxe4 {[%emt 0:13:36]} 5. Nxe4 {[%emt 0:03:27]} d5 {[%emt 0:00:09]} 6. Bd3 {[%emt 0:07:37]} dxe4 {[%emt 0:01:19]} 7. Bxe4 {[%emt 0:00:05]} Bd6 {[%emt 0:28:45]} 8. d4 {[%emt 0:08:25]} Nxd4 {[%emt 0:07:21]} 9. Nxd4 {[%emt 0:01:38]} exd4 {[%emt 0:00:36]} 10. Qxd4 {[%emt 0:02:25]} O-O {[%emt 0:00:15] aiming for ...Re8.} 11. Be3 {[%emt 0:03:10]} Qe7 {[%emt 0:03:35]} 12. O-O-O {[%emt 0:21:01][%cal Ba1d1,Bd1d2,Bd2d4][%mdl 32]} Re8 {[%emt 0:02:34]} 13. Bd5 {[%emt 0:04:05]} Be5 {[%emt 0:02:10]} 14. Qc5 {[%emt 0:03:57]} Qf6 {[%emt 0:08:35]} 15. Bd4 {[%emt 0:11:34]} c6 {[%emt 0:00:51]} 16. Bf3 {[%emt 0:00:51] Bxe5 is the strong threat. Active counter play!} Bf5 {[%emt 0:04:40]} 17. Rd2 {[%emt 0:04:46]} Bxd4 {[%emt 0:06:31]} 18. Rxd4 {[%emt 0:01:51]} Re5 {[%emt 0:05:26]} 19. Qd6 {[%emt 0:01:17]} 1/2-1/2